[Event "*** Titled Tuesday Blitz"]
[Site "Chess.com"]
[Date "2020.04.07"]
[Round "8"]
[White "jk13"]
[Black "Parhamov"]
[Result "0-1"]
[WhiteElo "2832"]
[BlackElo "3084"]
[TimeControl "180+1"]
[EndTime "14:35:11 PDT"]
[Termination "Parhamov won by resignation"]

1. e4 {[%clk 0:03:00.9]} 1... c5 {[%clk 0:02:59.1]} 2. c3 {[%clk 0:03:01.1]}
2... Nf6 {[%clk 0:02:58.5]} 3. e5 {[%clk 0:03:01.3]} 3... Nd5 {[%clk 0:02:58.7]}
4. Bc4 {[%clk 0:03:02]} 4... Nb6 {[%clk 0:02:58.1]} 5. Bb3 {[%clk 0:03:02.6]}
5... c4 {[%clk 0:02:57.6]} 6. Bc2 {[%clk 0:03:02.3]} 6... Nc6 {[%clk 0:02:58.5]}
7. Nf3 {[%clk 0:03:02.9]} 7... Qc7 {[%clk 0:02:56.7]} 8. Qe2 {[%clk 0:03:02.4]}
8... g5 {[%clk 0:02:57.3]} 9. Na3 {[%clk 0:03:02.8]} 9... g4 {[%clk 0:02:45.2]}
10. Nb5 {[%clk 0:03:03.4]} 10... Qb8 {[%clk 0:02:43.2]} 11. Nh4 {[%clk
0:03:03.9]} 11... Nxe5 {[%clk 0:02:40.4]} 12. O-O {[%clk 0:03:04]} 12... a6
{[%clk 0:02:38.8]} 13. Nd4 {[%clk 0:03:03.9]} 13... d6 {[%clk 0:02:37.2]} 14. f4
{[%clk 0:02:56.9]} 14... gxf3 {[%clk 0:02:33.2]} 15. Nhxf3 {[%clk 0:02:57.2]}
15... Qc7 {[%clk 0:02:31.5]} 16. Nxe5 {[%clk 0:02:52.3]} 16... dxe5 {[%clk
0:02:31.3]} 17. Nf5 {[%clk 0:02:44.8]} 17... Bxf5 {[%clk 0:02:27.3]} 18. Bxf5
{[%clk 0:02:44.6]} 18... e6 {[%clk 0:02:26.7]} 19. Bc2 {[%clk 0:02:39.1]} 19...
O-O-O {[%clk 0:02:26.8]} 20. b3 {[%clk 0:02:29.2]} 20... f5 {[%clk 0:02:26.7]}
21. Kh1 {[%clk 0:02:27.7]} 21... e4 {[%clk 0:02:24.9]} 22. a4 {[%clk 0:02:25.3]}
22... a5 {[%clk 0:02:20.6]} 23. Qh5 {[%clk 0:02:11.9]} 23... Rg8 {[%clk
0:02:16.9]} 24. Rb1 {[%clk 0:02:01.9]} 24... Qe5 {[%clk 0:02:14.9]} 25. bxc4
{[%clk 0:01:58.2]} 25... Bc5 {[%clk 0:02:09.4]} 26. Rb5 {[%clk 0:01:47.1]} 26...
Nd7 {[%clk 0:02:01.3]} 27. d4 {[%clk 0:01:34.7]} 27... exd3 {[%clk 0:02:01.2]}
28. Bxd3 {[%clk 0:01:34.6]} 28... Qc7 {[%clk 0:02:00.1]} 29. Bf4 {[%clk
0:01:23.7]} 29... Qc6 {[%clk 0:01:58.7]} 30. Qh3 {[%clk 0:01:19.3]} 30... b6
{[%clk 0:01:56.5]} 31. Be2 {[%clk 0:01:16.4]} 31... Nf6 {[%clk 0:01:56.8]} 32.
Bf3 {[%clk 0:01:14.1]} 32... Ne4 {[%clk 0:01:57]} 33. Rbb1 {[%clk 0:01:03.9]}
33... Rd3 {[%clk 0:01:48.6]} 34. Qxh7 {[%clk 0:00:59.5]} 34... Rgd8 {[%clk
0:01:47.8]} 35. Rb2 {[%clk 0:00:49.6]} 35... Rxc3 {[%clk 0:01:45.6]} 36. h3
{[%clk 0:00:41.1]} 36... Rcd3 {[%clk 0:01:38.8]} 37. Re2 {[%clk 0:00:38.9]}
37... R3d4 {[%clk 0:01:35.1]} 38. Be5 {[%clk 0:00:36.8]} 38... Rxc4 {[%clk
0:01:33.7]} 39. Rfe1 {[%clk 0:00:31.8]} 39... Qd7 {[%clk 0:01:30.5]} 40. Qxd7+
{[%clk 0:00:26.5]} 40... Rxd7 {[%clk 0:01:31.4]} 41. Bxe4 {[%clk 0:00:27.1]}
41... fxe4 {[%clk 0:01:30.2]} 42. Rxe4 {[%clk 0:00:28]} 42... Rc2 {[%clk
0:01:27.3]} 43. Rg4 {[%clk 0:00:26.2]} 43... Kb7 {[%clk 0:01:25.7]} 44. h4
{[%clk 0:00:26]} 44... Ka6 {[%clk 0:01:23.8]} 45. Kh2 {[%clk 0:00:25.2]} 45...
b5 {[%clk 0:01:22.5]} 46. axb5+ {[%clk 0:00:26.1]} 46... Kxb5 {[%clk 0:01:23.4]}
47. h5 {[%clk 0:00:25]} 47... Rh7 {[%clk 0:01:21.8]} 48. Rh4 {[%clk 0:00:21.7]}
48... a4 {[%clk 0:01:18.6]} 49. Rb1+ {[%clk 0:00:20.1]} 49... Kc6 {[%clk
0:01:18.3]} 50. h6 {[%clk 0:00:20.2]} 50... a3 {[%clk 0:01:16.5]} 51. Bg7 {[%clk
0:00:20.3]} 51... a2 {[%clk 0:01:14.2]} 52. Rf1 {[%clk 0:00:20.4]} 52... Be3
{[%clk 0:01:12.1]} 53. Kg3 {[%clk 0:00:16.9]} 53... e5 {[%clk 0:01:03.5]} 54.
Ra4 {[%clk 0:00:15.6]} 54... Kb5 {[%clk 0:00:58.4]} 55. Ra8 {[%clk 0:00:15]}
55... Bd4 {[%clk 0:00:58.2]} 56. Kg4 {[%clk 0:00:14.7]} 56... Rxg2+ {[%clk
0:00:55.2]} 57. Kf5 {[%clk 0:00:15]} 57... Rhxg7 {[%clk 0:00:45.3]} 58. hxg7
{[%clk 0:00:14.7]} 58... Rxg7 {[%clk 0:00:46.2]} 59. Ke4 {[%clk 0:00:13.5]}
59... Rg2 {[%clk 0:00:39.6]} 60. Kd5 {[%clk 0:00:13]} 60... Rd2 {[%clk
0:00:36.9]} 61. Ke6 {[%clk 0:00:12]} 61... e4 {[%clk 0:00:34.4]} 62. Kf5 {[%clk
0:00:11.9]} 62... e3 {[%clk 0:00:33.1]} 63. Re1 {[%clk 0:00:12.3]} 63... e2
{[%clk 0:00:30.7]} 64. Ke4 {[%clk 0:00:12.6]} 64... Bf2 {[%clk 0:00:28.4]} 65.
Ra1 {[%clk 0:00:09.9]} 65... e1=Q+ {[%clk 0:00:27.6]} 66. Rxe1 {[%clk
0:00:10.1]} 66... Bxe1 {[%clk 0:00:28.5]} 67. Ke3 {[%clk 0:00:10.7]} 67... Rh2
{[%clk 0:00:27.2]} 68. Kd3 {[%clk 0:00:11]} 68... Ba5 {[%clk 0:00:27.1]} 69.
Rb8+ {[%clk 0:00:10.2]} 69... Ka4 {[%clk 0:00:27.5]} 70. Kc4 {[%clk 0:00:05.9]}
70... a1=Q {[%clk 0:00:22.6]} 0-1

[Event "*** Titled Tuesday Blitz"]
[Site "Chess.com"]
[Date "2020.04.07"]
[Round "8"]
[White "Lysiak_Poltorak"]
[Black "Alliswell998"]
[Result "0-1"]
[WhiteElo "2368"]
[BlackElo "2540"]
[TimeControl "180+1"]
[EndTime "14:35:11 PDT"]
[Termination "Alliswell998 won on time"]

1. d4 {[%clk 0:03:00.9]} 1... Nf6 {[%clk 0:02:58.9]} 2. c4 {[%clk 0:03:01.1]}
2... c5 {[%clk 0:02:57.9]} 3. d5 {[%clk 0:03:00.7]} 3... b5 {[%clk 0:02:57.4]}
4. Qc2 {[%clk 0:02:59.1]} 4... g6 {[%clk 0:02:54.1]} 5. e4 {[%clk 0:02:57.7]}
5... d6 {[%clk 0:02:52.8]} 6. Nf3 {[%clk 0:02:50.7]} 6... Bg7 {[%clk 0:02:53.2]}
7. Bd3 {[%clk 0:02:45.1]} 7... O-O {[%clk 0:02:51.5]} 8. O-O {[%clk 0:02:44.9]}
8... bxc4 {[%clk 0:02:49.7]} 9. Bxc4 {[%clk 0:02:44.4]} 9... Ba6 {[%clk
0:02:50.1]} 10. Nbd2 {[%clk 0:02:38.2]} 10... Nfd7 {[%clk 0:02:41.9]} 11. Rb1
{[%clk 0:02:36.7]} 11... Nb6 {[%clk 0:02:37.6]} 12. b3 {[%clk 0:02:34]} 12...
Bxc4 {[%clk 0:02:33.3]} 13. Nxc4 {[%clk 0:02:33.6]} 13... Nxc4 {[%clk
0:02:32.9]} 14. Qxc4 {[%clk 0:02:33.2]} 14... Qc8 {[%clk 0:02:30.4]} 15. Bb2
{[%clk 0:02:32.4]} 15... Qa6 {[%clk 0:02:29.6]} 16. Bxg7 {[%clk 0:02:29.3]}
16... Kxg7 {[%clk 0:02:28.6]} 17. Qc3+ {[%clk 0:02:28.4]} 17... Kg8 {[%clk
0:02:28.1]} 18. e5 {[%clk 0:02:28]} 18... Qxa2 {[%clk 0:02:25.4]} 19. exd6
{[%clk 0:01:54]} 19... exd6 {[%clk 0:02:26.2]} 20. Rfe1 {[%clk 0:01:25.4]} 20...
Qa6 {[%clk 0:02:25.3]} 21. Re7 {[%clk 0:01:21]} 21... Qc8 {[%clk 0:02:17.1]} 22.
Ng5 {[%clk 0:01:18.1]} 22... Qf5 {[%clk 0:02:14.5]} 23. Ne4 {[%clk 0:01:11.5]}
23... f6 {[%clk 0:02:02.5]} 24. Re1 {[%clk 0:01:06.7]} 24... Nd7 {[%clk
0:01:56.3]} 25. Nxd6 {[%clk 0:01:04.5]} 25... Qxd5 {[%clk 0:01:29.1]} 26. Rxd7
{[%clk 0:01:03.4]} 26... Rad8 {[%clk 0:01:24]} 27. Rxd8 {[%clk 0:00:57.1]} 27...
Rxd8 {[%clk 0:01:24.1]} 28. Nc4 {[%clk 0:00:56.1]} 28... Kg7 {[%clk 0:01:20.3]}
29. h3 {[%clk 0:00:54.6]} 29... Rd7 {[%clk 0:01:20.4]} 30. Qe3 {[%clk
0:00:53.4]} 30... Rb7 {[%clk 0:01:17.9]} 31. Qc3 {[%clk 0:00:50.5]} 31... h5
{[%clk 0:01:15.1]} 32. Qc2 {[%clk 0:00:45]} 32... h4 {[%clk 0:01:03.7]} 33. Rd1
{[%clk 0:00:42.9]} 33... Qe6 {[%clk 0:00:56.7]} 34. Qd3 {[%clk 0:00:35.9]} 34...
g5 {[%clk 0:00:47.2]} 35. Rb1 {[%clk 0:00:26.7]} 35... Rd7 {[%clk 0:00:46.2]}
36. Qc2 {[%clk 0:00:23.1]} 36... Rd4 {[%clk 0:00:39.3]} 37. Rd1 {[%clk
0:00:21.5]} 37... Re4 {[%clk 0:00:39.8]} 38. Qd2 {[%clk 0:00:19.5]} 38... Kh6
{[%clk 0:00:34.4]} 39. Ne3 {[%clk 0:00:13.6]} 39... Rd4 {[%clk 0:00:32.5]} 40.
Qc2 {[%clk 0:00:12.7]} 40... Re4 {[%clk 0:00:27.1]} 41. Rd8 {[%clk 0:00:10.1]}
41... Kg7 {[%clk 0:00:19.2]} 42. Rd6 {[%clk 0:00:08.7]} 42... Qe5 {[%clk
0:00:17.7]} 43. Rd7+ {[%clk 0:00:07.2]} 43... Kg8 {[%clk 0:00:16.1]} 44. Qd1
{[%clk 0:00:05.3]} 44... Rd4 {[%clk 0:00:16.1]} 45. Rxd4 {[%clk 0:00:04.9]}
45... cxd4 {[%clk 0:00:17]} 46. Nc4 {[%clk 0:00:04.2]} 46... Qe4 {[%clk
0:00:17]} 47. Qd2 {[%clk 0:00:04]} 47... d3 {[%clk 0:00:17.1]} 48. Qe3 {[%clk
0:00:03.9]} 48... Qd5 {[%clk 0:00:17.6]} 49. Nd2 {[%clk 0:00:03.4]} 49... Kf7
{[%clk 0:00:16.5]} 50. Qxa7+ {[%clk 0:00:03.1]} 50... Kg6 {[%clk 0:00:16.5]} 51.
Qe3 {[%clk 0:00:04]} 51... Kg7 {[%clk 0:00:15.7]} 52. Qe1 {[%clk 0:00:04.4]}
52... Qd4 {[%clk 0:00:15.6]} 53. Qc1 {[%clk 0:00:04.6]} 53... Qe5 {[%clk
0:00:15]} 54. Qd1 {[%clk 0:00:03.2]} 54... f5 {[%clk 0:00:12.6]} 55. Nf1 {[%clk
0:00:03.6]} 55... Qe2 {[%clk 0:00:12.1]} 56. Qb1 {[%clk 0:00:02.2]} 56... d2
{[%clk 0:00:11]} 57. Ne3 {[%clk 0:00:02.4]} 57... Qe1+ {[%clk 0:00:10.3]} 0-1

[Event "*** Titled Tuesday Blitz"]
[Site "Chess.com"]
[Date "2020.04.07"]
[Round "8"]
[White "TheBigBoss04"]
[Black "Carnivoras"]
[Result "0-1"]
[WhiteElo "2776"]
[BlackElo "2636"]
[TimeControl "180+1"]
[EndTime "14:35:12 PDT"]
[Termination "Carnivoras won on time"]

1. g3 {[%clk 0:03:00.9]} 1... d5 {[%clk 0:03:00]} 2. Bg2 {[%clk 0:03:01.8]} 2...
Nf6 {[%clk 0:03:00.9]} 3. Nf3 {[%clk 0:03:02.2]} 3... Bf5 {[%clk 0:03:01.2]} 4.
O-O {[%clk 0:03:03]} 4... e6 {[%clk 0:03:01.8]} 5. c4 {[%clk 0:03:03.7]} 5... c6
{[%clk 0:03:00.1]} 6. d3 {[%clk 0:03:04.1]} 6... Be7 {[%clk 0:02:59.8]} 7. cxd5
{[%clk 0:03:04.5]} 7... exd5 {[%clk 0:02:59.7]} 8. Nc3 {[%clk 0:03:05.4]} 8...
O-O {[%clk 0:02:59.6]} 9. Nh4 {[%clk 0:03:05.8]} 9... Bg4 {[%clk 0:02:59.1]} 10.
h3 {[%clk 0:03:04.6]} 10... Bh5 {[%clk 0:02:59.1]} 11. Nf5 {[%clk 0:03:05]}
11... Nbd7 {[%clk 0:02:57.2]} 12. Bf4 {[%clk 0:02:58.2]} 12... Re8 {[%clk
0:02:53.1]} 13. Nxe7+ {[%clk 0:02:48.8]} 13... Qxe7 {[%clk 0:02:52.2]} 14. g4
{[%clk 0:02:49.3]} 14... Bg6 {[%clk 0:02:51.8]} 15. e3 {[%clk 0:02:30.9]} 15...
Nc5 {[%clk 0:02:43.4]} 16. d4 {[%clk 0:02:27.4]} 16... Nd3 {[%clk 0:02:42.4]}
17. Qd2 {[%clk 0:02:25.4]} 17... Nxf4 {[%clk 0:02:39.5]} 18. exf4 {[%clk
0:02:26.3]} 18... h6 {[%clk 0:02:13.9]} 19. Rae1 {[%clk 0:02:25.3]} 19... Qd7
{[%clk 0:02:10.1]} 20. Re5 {[%clk 0:02:25.4]} 20... Ne4 {[%clk 0:01:59]} 21. Qc1
{[%clk 0:02:07.8]} 21... f6 {[%clk 0:01:53.5]} 22. Rxe8+ {[%clk 0:02:07.6]}
22... Rxe8 {[%clk 0:01:54.3]} 23. f5 {[%clk 0:02:05]} 23... Bf7 {[%clk
0:01:52.9]} 24. Re1 {[%clk 0:02:04.4]} 24... Nxc3 {[%clk 0:01:51.8]} 25. bxc3
{[%clk 0:02:03.5]} 25... Rxe1+ {[%clk 0:01:49.4]} 26. Qxe1 {[%clk 0:02:04.4]}
26... Qe8 {[%clk 0:01:48.3]} 27. Qb1 {[%clk 0:02:03.7]} 27... Qe7 {[%clk
0:01:47.2]} 28. a4 {[%clk 0:02:03]} 28... b6 {[%clk 0:01:42.6]} 29. Bf3 {[%clk
0:01:55.2]} 29... Qa3 {[%clk 0:01:38.5]} 30. Qe1 {[%clk 0:01:53.3]} 30... Qxa4
{[%clk 0:01:27.6]} 31. Qe7 {[%clk 0:01:52.4]} 31... Qa1+ {[%clk 0:01:24.2]} 32.
Kg2 {[%clk 0:01:52.8]} 32... Qxc3 {[%clk 0:01:23.2]} 33. Qd8+ {[%clk 0:01:53.5]}
33... Kh7 {[%clk 0:01:22.7]} 34. Qc7 {[%clk 0:01:54.2]} 34... Bg8 {[%clk
0:01:16.9]} 35. g5 {[%clk 0:01:39.2]} 35... Qxd4 {[%clk 0:00:48]} 36. g6+ {[%clk
0:01:38.8]} 36... Kh8 {[%clk 0:00:47.9]} 37. Qxa7 {[%clk 0:01:37.4]} 37... Qe5
{[%clk 0:00:45.1]} 38. Bg4 {[%clk 0:01:36.7]} 38... d4 {[%clk 0:00:43.2]} 39.
Qxb6 {[%clk 0:01:11.9]} 39... c5 {[%clk 0:00:41.7]} 40. Qa6 {[%clk 0:00:13.8]}
40... c4 {[%clk 0:00:38.6]} 41. Qc8 {[%clk 0:00:13.8]} 41... d3 {[%clk
0:00:30.5]} 42. Bd1 {[%clk 0:00:11.1]} 42... Qd5+ {[%clk 0:00:22.9]} 43. Kg3
{[%clk 0:00:09.6]} 43... d2 {[%clk 0:00:20.4]} 44. h4 {[%clk 0:00:06.1]} 44...
Qd3+ {[%clk 0:00:20]} 45. f3 {[%clk 0:00:05.3]} 45... Qd6+ {[%clk 0:00:19.4]}
46. Kg2 {[%clk 0:00:04.8]} 46... Qd5 {[%clk 0:00:16.2]} 47. h5 {[%clk
0:00:04.5]} 47... Qd6 {[%clk 0:00:14.5]} 48. Kh3 {[%clk 0:00:01.9]} 48... Qf4
{[%clk 0:00:13.2]} 49. Kg2 {[%clk 0:00:02.5]} 49... Qg5+ {[%clk 0:00:12.9]} 50.
Kf2 {[%clk 0:00:02.3]} 50... Qh4+ {[%clk 0:00:12.1]} 51. Ke3 {[%clk 0:00:02.9]}
51... Qe1+ {[%clk 0:00:11.7]} 52. Be2 {[%clk 0:00:03.4]} 52... d1=Q {[%clk
0:00:11]} 53. Kf4 {[%clk 0:00:02.4]} 53... Qexe2 {[%clk 0:00:10.7]} 0-1

[Event "*** Titled Tuesday Blitz"]
[Site "Chess.com"]
[Date "2020.04.07"]
[Round "8"]
[White "Taabling"]
[Black "matiss90"]
[Result "1-0"]
[WhiteElo "2331"]
[BlackElo "2516"]
[TimeControl "180+1"]
[EndTime "14:35:12 PDT"]
[Termination "Taabling won on time"]

1. e4 {[%clk 0:02:59.4]} 1... c5 {[%clk 0:02:59.7]} 2. Nf3 {[%clk 0:02:57.7]}
2... d6 {[%clk 0:02:59.8]} 3. c3 {[%clk 0:02:57.3]} 3... Nf6 {[%clk 0:02:59.5]}
4. Bd3 {[%clk 0:02:53.8]} 4... g6 {[%clk 0:02:59.2]} 5. O-O {[%clk 0:02:53]}
5... Bg7 {[%clk 0:02:58.9]} 6. Re1 {[%clk 0:02:52.8]} 6... O-O {[%clk
0:02:56.6]} 7. Bc2 {[%clk 0:02:53]} 7... e5 {[%clk 0:02:54.5]} 8. h3 {[%clk
0:02:51.5]} 8... Nc6 {[%clk 0:02:54.9]} 9. d4 {[%clk 0:02:51.4]} 9... b5 {[%clk
0:02:51.9]} 10. dxe5 {[%clk 0:02:49.7]} 10... dxe5 {[%clk 0:02:50.9]} 11. Qxd8
{[%clk 0:02:48.6]} 11... Rxd8 {[%clk 0:02:51.8]} 12. Be3 {[%clk 0:02:44.8]}
12... Bf8 {[%clk 0:02:48.6]} 13. Nbd2 {[%clk 0:02:38]} 13... h6 {[%clk 0:02:09]}
14. a4 {[%clk 0:02:35.9]} 14... Nd4 {[%clk 0:01:52.6]} 15. Bxd4 {[%clk 0:02:31]}
15... cxd4 {[%clk 0:01:39.1]} 16. axb5 {[%clk 0:02:27.3]} 16... dxc3 {[%clk
0:01:35.8]} 17. bxc3 {[%clk 0:02:26.1]} 17... Rb8 {[%clk 0:01:24.4]} 18. c4
{[%clk 0:02:08.7]} 18... a6 {[%clk 0:00:45.5]} 19. bxa6 {[%clk 0:02:05.3]} 19...
Rb2 {[%clk 0:00:45.1]} 20. a7 {[%clk 0:01:55.6]} 20... Be6 {[%clk 0:00:19.5]}
21. Ba4 {[%clk 0:01:37.4]} 21... Bc5 {[%clk 0:00:08.2]} 22. Bc6 {[%clk
0:01:35.4]} 22... Bxa7 {[%clk 0:00:04.9]} 23. Rxa7 {[%clk 0:01:36.3]} 23...
Rdxd2 {[%clk 0:00:04.2]} 24. Nxd2 {[%clk 0:01:35.8]} 24... Rxd2 {[%clk
0:00:05.1]} 25. Bd5 {[%clk 0:01:32.7]} 25... Rc2 {[%clk 0:00:03.5]} 26. Bxe6
{[%clk 0:01:30.8]} 26... fxe6 {[%clk 0:00:04.4]} 27. Rc7 {[%clk 0:01:29.8]}
27... Ne8 {[%clk 0:00:03.6]} 28. Rc8 {[%clk 0:01:29]} 28... Kf7 {[%clk
0:00:02.9]} 29. Rd1 {[%clk 0:01:29.5]} 29... Nf6 {[%clk 0:00:02.8]} 30. f3
{[%clk 0:01:28.9]} 30... g5 {[%clk 0:00:02.8]} 31. Rd6 {[%clk 0:01:10.1]} 31...
Nh5 {[%clk 0:00:02.7]} 32. Rc7+ {[%clk 0:01:09.5]} 32... Kf6 {[%clk 0:00:02.9]}
33. Rd8 {[%clk 0:01:08.3]} 33... Nf4 {[%clk 0:00:02.7]} 34. Rf8+ {[%clk
0:00:53.3]} 34... Kg6 {[%clk 0:00:02.4]} 35. Rg8+ {[%clk 0:00:52.9]} 35... Kh5
{[%clk 0:00:02.3]} 36. Kf1 {[%clk 0:00:32.5]} 36... Kh4 {[%clk 0:00:02.1]} 37.
Rf7 {[%clk 0:00:23.1]} 37... Kg3 {[%clk 0:00:01.7]} 38. Rxf4 {[%clk 0:00:16.2]}
38... exf4 {[%clk 0:00:02.6]} 39. Rh8 {[%clk 0:00:10.9]} 39... Rc1+ {[%clk
0:00:02.8]} 40. Ke2 {[%clk 0:00:10.4]} 40... Kxg2 {[%clk 0:00:03.6]} 41. Rxh6
{[%clk 0:00:10.7]} 41... Rc2+ {[%clk 0:00:03.5]} 42. Kd3 {[%clk 0:00:10.6]}
42... Rc1 {[%clk 0:00:03.9]} 43. e5 {[%clk 0:00:10.2]} 43... Kxf3 {[%clk
0:00:04.8]} 44. h4 {[%clk 0:00:10.3]} 44... Rd1+ {[%clk 0:00:04.9]} 45. Kc2
{[%clk 0:00:09.7]} 45... Rd4 {[%clk 0:00:04.6]} 46. Kc3 {[%clk 0:00:09.7]} 46...
Rd1 {[%clk 0:00:04.1]} 47. hxg5 {[%clk 0:00:09.6]} 47... Ke4 {[%clk 0:00:05]}
48. Rxe6 {[%clk 0:00:09.3]} 48... f3 {[%clk 0:00:04.9]} 49. Rf6 {[%clk
0:00:10.2]} 49... Rg1 {[%clk 0:00:04.5]} 50. e6 {[%clk 0:00:09.8]} 50... Ke3
{[%clk 0:00:04.6]} 51. e7 {[%clk 0:00:10.1]} 51... Rc1+ {[%clk 0:00:04]} 52. Kb4
{[%clk 0:00:09.7]} 52... Rb1+ {[%clk 0:00:03.9]} 53. Kc5 {[%clk 0:00:10.6]}
53... Rb8 {[%clk 0:00:04.2]} 54. Rf8 {[%clk 0:00:11]} 54... f2 {[%clk
0:00:03.7]} 55. e8=Q+ {[%clk 0:00:10.9]} 55... Rxe8 {[%clk 0:00:01]} 56. Rxe8+
{[%clk 0:00:11.8]} 1-0

[Event "*** Titled Tuesday Blitz"]
[Site "Chess.com"]
[Date "2020.04.07"]
[Round "8"]
[White "Chigorinetz"]
[Black "nomessi"]
[Result "1-0"]
[WhiteElo "2499"]
[BlackElo "2325"]
[TimeControl "180+1"]
[EndTime "14:35:17 PDT"]
[Termination "Chigorinetz won on time"]

1. e4 {[%clk 0:02:54.8]} 1... Nf6 {[%clk 0:02:56.4]} 2. Nc3 {[%clk 0:02:53.6]}
2... e5 {[%clk 0:02:56.2]} 3. Bc4 {[%clk 0:02:52.9]} 3... Nxe4 {[%clk
0:02:51.1]} 4. Qh5 {[%clk 0:02:51.6]} 4... Nd6 {[%clk 0:02:50.7]} 5. Bb3 {[%clk
0:02:50]} 5... g6 {[%clk 0:02:47.7]} 6. Qxe5+ {[%clk 0:02:46.4]} 6... Qe7 {[%clk
0:02:47]} 7. Qxe7+ {[%clk 0:02:32.7]} 7... Bxe7 {[%clk 0:02:43.7]} 8. Nd5 {[%clk
0:02:33.6]} 8... Bd8 {[%clk 0:02:42.9]} 9. d4 {[%clk 0:02:33.3]} 9... c6 {[%clk
0:02:33.1]} 10. Bf4 {[%clk 0:02:31.6]} 10... Nf5 {[%clk 0:02:29.6]} 11. Ne3
{[%clk 0:02:16]} 11... d5 {[%clk 0:02:09.2]} 12. O-O-O {[%clk 0:02:13.2]} 12...
O-O {[%clk 0:02:05.2]} 13. Nf3 {[%clk 0:02:11.5]} 13... Be6 {[%clk 0:01:59.8]}
14. Ng4 {[%clk 0:02:08.9]} 14... Nd7 {[%clk 0:01:56.8]} 15. Rhe1 {[%clk
0:01:58.8]} 15... a5 {[%clk 0:01:50.7]} 16. a4 {[%clk 0:01:55.7]} 16... Kg7
{[%clk 0:01:46]} 17. c3 {[%clk 0:01:53.2]} 17... h5 {[%clk 0:01:42.6]} 18. Ne3
{[%clk 0:01:39.4]} 18... Nf6 {[%clk 0:01:37.4]} 19. Nxf5+ {[%clk 0:01:31.8]}
19... Bxf5 {[%clk 0:01:34]} 20. Bd6 {[%clk 0:01:32.1]} 20... Re8 {[%clk
0:01:31.4]} 21. Be5 {[%clk 0:01:18.2]} 21... Kg8 {[%clk 0:01:29.2]} 22. Bc2
{[%clk 0:01:04]} 22... Bxc2 {[%clk 0:01:24.7]} 23. Kxc2 {[%clk 0:01:04.9]} 23...
Ne4 {[%clk 0:01:23.5]} 24. Re2 {[%clk 0:01:03.4]} 24... f6 {[%clk 0:01:08.7]}
25. Bf4 {[%clk 0:01:02.6]} 25... g5 {[%clk 0:01:06.9]} 26. Bc1 {[%clk
0:01:00.1]} 26... Kf7 {[%clk 0:01:01.7]} 27. Ne1 {[%clk 0:00:54.1]} 27... Bc7
{[%clk 0:00:57.3]} 28. Nd3 {[%clk 0:00:48.5]} 28... b6 {[%clk 0:00:52.3]} 29. h3
{[%clk 0:00:47.2]} 29... h4 {[%clk 0:00:51]} 30. Rde1 {[%clk 0:00:45.3]} 30...
Nd6 {[%clk 0:00:46.5]} 31. Rxe8 {[%clk 0:00:40.4]} 31... Rxe8 {[%clk 0:00:44.5]}
32. Rxe8 {[%clk 0:00:40]} 32... Kxe8 {[%clk 0:00:44.4]} 33. b3 {[%clk
0:00:39.1]} 33... Kf7 {[%clk 0:00:42.6]} 34. f3 {[%clk 0:00:36.9]} 34... Ke6
{[%clk 0:00:38.1]} 35. Kd1 {[%clk 0:00:34.1]} 35... Nf5 {[%clk 0:00:33.4]} 36.
b4 {[%clk 0:00:28.8]} 36... axb4 {[%clk 0:00:28.1]} 37. Nxb4 {[%clk 0:00:27.4]}
37... c5 {[%clk 0:00:27.1]} 38. dxc5 {[%clk 0:00:24.5]} 38... bxc5 {[%clk
0:00:25.2]} 39. Nd3 {[%clk 0:00:24.8]} 39... c4 {[%clk 0:00:19.6]} 40. Nc5+
{[%clk 0:00:21.8]} 40... Kd6 {[%clk 0:00:16.9]} 41. Ba3 {[%clk 0:00:20.4]} 41...
Kc6 {[%clk 0:00:14.9]} 42. Ne6 {[%clk 0:00:17.2]} 42... Bd6 {[%clk 0:00:12.8]}
43. Bc1 {[%clk 0:00:14.2]} 43... Kb6 {[%clk 0:00:08.9]} 44. f4 {[%clk
0:00:13.5]} 44... gxf4 {[%clk 0:00:05.5]} 45. Ke2 {[%clk 0:00:13.2]} 45... Ka5
{[%clk 0:00:01.8]} 46. Bxf4 {[%clk 0:00:12.7]} 1-0